bitfinex/quotes_ETHUSD_20260228
["timestamp","ask_amount","ask_price","bid_price","bid_amount"]
[1772266049654,5.20236728,1865.9,1865.3,1.34246391]
[1772266049860,5.20236728,1865.9,1865.3,0.0022]
[1772266050036,5.20236728,1865.9,1865.0,0.0011]
[1772266050037,3.86252509,1865.7,1865.0,0.0011]
[1772266050365,3.86252509,1865.5,1865.1,0.0022]
[1772266050862,5.65852509,1865.5,1865.1,0.0022]
[1772266051845,3.86252509,1865.3,1865.0,0.0011]
[1772266052064,3.86252509,1865.3,1865.0,0.0033]
[1772266053131,1.34019513,1865.4,1865.0,0.0033]
[1772266053330,3.13719513,1865.4,1865.0,0.0033]
[1772266053658,3.13719513,1865.4,1865.1,0.0022]
[1772266053962,3.13719513,1865.4,1865.0,0.0011]
[1772266053963,3.86252509,1865.3,1865.0,0.0033]
[1772266054174,3.86252509,1865.3,1864.5,5.08152908]
[1772266054463,3.86252509,1865.3,1864.6,5.36285838]
[1772266054763,3.86252509,1865.3,1864.5,5.36319369]
[1772266055134,1.34010743,1865.6,1864.7,3.48881502]
[1772266055340,3.86252509,1865.4,1864.5,12.59276766]
[1772266055562,3.86252509,1865.4,1864.5,8.85200871]
[1772266056067,5.20279207,1865.3,1864.5,8.85200871]
[1772266056271,3.86252509,1865.2,1864.3,3.57561449]
[1772266056453,5.65952509,1865.1,1864.3,3.57561449]
[1772266056642,3.86252509,1865.0,1864.3,3.57561449]
[1772266057461,3.86252509,1865.0,1864.0,1.34114537]
[1772266057462,3.86252509,1864.9,1864.0,1.34114537]
[1772266058235,3.86252509,1864.7,1863.9,4.91568148]
[1772266058438,3.86252509,1864.6,1863.9,1.34122267]
[1772266058638,3.86252509,1864.6,1863.8,1.34130573]
[1772266059445,3.86252509,1864.6,1863.8,4.91340555]
[1772266059651,3.13562634,1864.8,1864.6,0.0011]
[1772266060053,1.34048257,1865.0,1864.6,0.0011]
[1772266060272,3.13548257,1865.0,1864.6,0.0011]
[1772266060577,1.795,1865.0,1864.6,0.0011]
[1772266060746,1.796,1865.1,1864.6,0.0011]
[1772266061072,4.01454332,1865.0,1864.6,0.0011]
[1772266061296,4.01454332,1865.0,1864.5,0.0011]
[1772266061569,1.796,1865.1,1864.3,0.0011]
[1772266061570,4.01454332,1864.6,1864.3,0.0011]
[1772266062471,5.46893869,1864.5,1864.3,0.0011]
[1772266062764,7.26593869,1864.5,1864.3,0.0011]
[1772266063066,4.12809665,1864.4,1864.3,0.0011]
[1772266064341,5.46901061,1864.4,1864.3,0.0011]
[1772266065238,5.46901061,1864.4,1863.6,2.67977915]
[1772266065445,4.12809665,1864.3,1863.5,4.91858866]
[1772266065637,4.12809665,1864.3,1863.4,5.36652116]
[1772266065638,4.12809665,1864.3,1863.3,1.34170557]
[1772266066067,4.12809665,1864.3,1863.3,4.91283147]
[1772266066438,1.34105782,1864.2,1863.3,1.34170557]
[1772266066767,4.12809665,1863.5,1862.4,3.5711259]
[1772266066951,1.803,1863.4,1862.4,3.5711259]
[1772266067144,5.93109665,1863.4,1862.4,3.5711259]
[1772266067352,4.12809665,1863.3,1862.4,3.5711259]
[1772266068756,1.34177758,1863.2,1862.5,1.34228187]
[1772266069659,4.12809665,1863.1,1862.3,1.34236688]
[1772266069853,1.801,1863.4,1862.7,3.60382966]
[1772266070376,1.801,1863.4,1862.2,5.36987603]
[1772266070377,3.74075895,1862.8,1861.6,3.60492966]
[1772266070545,4.12809665,1862.8,1861.7,3.60382966]
[1772266070745,4.12809665,1862.5,1861.7,1.34281197]
[1772266070945,4.12809665,1862.5,1861.6,1.34399124]
[1772266071151,4.12809665,1862.5,1861.6,5.08475019]
[1772266071779,4.12809665,1862.5,1861.6,5.0847893]
[1772266072850,3.14319099,1862.7,1861.8,7.34293331]
[1772266073478,4.12809665,1862.6,1861.8,0.0011]
[1772266074699,1.34228187,1862.5,1861.8,0.0011]
[1772266074852,4.12809665,1862.4,1861.8,0.0011]
[1772266075985,1.34228187,1862.5,1861.8,0.0011]
[1772266075986,4.12809665,1862.3,1861.8,0.0011]
[1772266076157,5.92909665,1862.2,1861.8,0.0011]
[1772266077078,1.34257021,1862.1,1861.8,0.0011]
[1772266077285,5.47066686,1862.1,1861.8,0.0011]
[1772266078488,4.12809665,1862.1,1861.8,0.0011]
[1772266078664,4.12809665,1862.1,1861.7,0.0011]
[1772266079203,4.12809665,1861.9,1861.7,0.0011]
[1772266079769,1.34252882,1862.2,1861.7,0.0011]
[1772266079966,4.12809665,1862.1,1861.7,0.0011]
[1772266080293,1.805,1862.3,1861.7,0.0011]
[1772266080865,5.47024085,1862.7,1861.9,7.32757359]
[1772266081087,5.47024085,1862.7,1861.7,3.74185895]
[1772266081282,4.12809665,1862.6,1861.8,1.34278655]
[1772266081668,5.47012858,1862.9,1861.9,7.32757359]
[1772266081877,4.12809665,1862.8,1861.9,7.32757359]
[1772266082469,4.12809665,1862.8,1861.8,1.34278655]
[1772266083020,4.12809665,1863.0,1862.3,3.74075895]
[1772266083301,5.46980222,1863.3,1862.5,3.74075895]
[1772266083463,4.12809665,1863.3,1862.5,3.74075895]
[1772266083670,4.12809665,1863.3,1862.3,3.58268796]
[1772266083974,4.12809665,1863.3,1862.5,3.74075895]
[1772266084571,4.12809665,1863.3,1862.3,7.32344691]
[1772266085186,5.46987423,1863.2,1862.4,1.34235395]
[1772266086179,7.17475073,1863.4,1862.5,3.74075895]
[1772266086180,1.34168953,1863.4,1862.5,3.74075895]
[1772266086383,5.46978618,1863.4,1862.4,1.34235395]
[1772266086592,5.93409665,1863.3,1862.4,1.34235395]
[1772266087121,5.93409665,1863.3,1861.7,5.43791141]
[1772266087122,4.12809665,1863.2,1862.0,3.57535316]
[1772266087405,4.12809665,1862.8,1862.0,1.34368531]
[1772266087704,4.12809665,1862.7,1862.0,1.34371917]
[1772266088271,5.93409665,1862.8,1862.0,0.0011]
[1772266088494,4.12809665,1862.7,1862.0,1.34373455]
[1772266088885,4.12809665,1862.7,1862.0,0.0011]
[1772266089102,4.12809665,1862.7,1862.0,1.34372535]
[1772266089272,4.12809665,1862.5,1862.0,0.0011]
[1772266089479,4.12809665,1862.3,1862.0,0.0011]
[1772266089679,4.12809665,1862.3,1861.9,0.0011]
[1772266090289,3.74075895,1862.2,1861.9,0.0011]
[1772266090490,4.12809665,1862.3,1861.9,0.0011]
[1772266090491,4.17732765,1862.1,1861.9,0.0011]
[1772266090809,5.98432765,1862.0,1861.9,0.0011]
[1772266091224,1.34278655,1861.8,1861.7,0.0011]
[1772266091502,1.807,1861.8,1861.6,0.0011]
[1772266091737,1.807,1861.8,1861.6,0.0022]
[1772266091934,1.807,1861.8,1861.2,0.0011]
[1772266091935,4.17732765,1861.5,1861.2,0.0011]
[1772266092248,3.74075895,1861.7,1861.2,0.0011]
[1772266092249,4.17732765,1861.7,1861.3,0.0011]
[1772266092511,1.808,1861.5,1861.2,0.0022]
[1772266092739,5.98632765,1861.7,1861.3,0.0011]
[1772266092939,1.809,1861.7,1861.3,0.0011]
[1772266093132,4.17732765,1861.6,1861.3,0.0011]
[1772266093439,5.5203306,1861.5,1861.2,0.0011]
[1772266093647,5.5203306,1861.5,1861.2,0.0033]
[1772266093870,5.98732765,1861.5,1861.2,0.0033]
[1772266094412,4.17732765,1861.4,1861.2,0.0033]
[1772266094738,5.37115717,1861.8,1861.2,0.0033]
[1772266094739,4.17732765,1862.1,1861.3,3.74075895]
[1772266094945,8.08532796,1862.4,1861.3,3.74295895]
[1772266095249,4.17732765,1862.2,1861.4,0.0011]
[1772266095704,1.34257021,1862.1,1861.4,0.0011]
[1772266095906,1.812,1862.0,1861.4,0.0011]
[1772266096128,1.34257021,1862.1,1861.5,0.0022]
[1772266096333,1.812,1862.0,1861.2,1.34431942]
[1772266096514,1.812,1862.0,1861.3,0.0011]
[1772266096752,1.34257021,1862.1,1861.4,0.0011]
[1772266097038,1.812,1862.0,1861.4,0.0022]
[1772266097245,4.17732765,1862.2,1861.4,0.0011]
[1772266097447,1.812,1862.2,1861.5,0.0022]
[1772266097739,1.812,1862.4,1861.6,1.34293081]
[1772266098032,3.15435882,1862.4,1861.6,1.34403081]
[1772266098234,1.812,1862.4,1861.6,1.34403081]
[1772266098539,3.15436192,1862.4,1861.6,1.34403081]
[1772266099113,1.811,1862.4,1861.6,1.34403081]
[1772266099311,4.17732765,1862.5,1861.6,1.34293081]
[1772266099514,7.32961015,1862.5,1861.7,0.0022]
[1772266102610,0.5654775,1862.6,1861.8,3.54396138]
[1772266102842,0.5654775,1862.6,1862.1,1.34257021]
[1772266104843,0.5654775,1862.6,1862.0,5.37041]
[1772266105130,0.5654775,1862.6,1862.1,3.53878281]
[1772266106519,5.51917246,1863.2,1862.4,2.96866229]
[1772266106917,1.807,1863.3,1862.5,4.31109241]
[1772266107157,1.34168466,1863.4,1862.5,4.31109241]
[1772266107338,5.5199403,1863.5,1862.6,0.0011]
[1772266107921,5.5199403,1863.5,1862.7,0.0022]
[1772266108126,5.5199403,1863.5,1862.6,2.9832485]
[1772266108371,4.17732765,1863.4,1862.6,0.0022]
[1772266108661,5.98332765,1863.4,1862.7,0.0011]
[1772266109064,4.17732765,1863.4,1862.7,0.0011]
[1772266109272,4.17732765,1863.4,1862.6,1.34330981]
[1772266109273,5.5189698,1863.4,1862.8,0.0022]
[1772266109446,5.5189698,1863.4,1862.7,0.0022]
[1772266110141,5.5199698,1863.4,1862.7,0.0022]
[1772266110756,4.17732765,1863.3,1862.7,0.0022]
[1772266111067,5.51910523,1863.2,1862.8,0.0011]
[1772266111278,4.17732765,1863.0,1862.3,2.96838229]
[1772266111439,4.17732765,1863.0,1862.5,0.0011]
[1772266111639,5.98332765,1863.0,1862.5,0.0011]
[1772266112566,1.34176182,1863.3,1862.6,0.0011]
[1772266112764,4.17732765,1863.2,1862.6,0.0011]
[1772266113140,5.51916947,1863.2,1862.6,0.0011]
[1772266113839,5.51916947,1863.2,1862.7,0.0022]
[1772266114074,5.51916947,1863.2,1862.6,0.0022]
[1772266115562,4.17732765,1863.1,1862.6,0.0022]
[1772266117068,1.3420657,1862.8,1862.6,0.0022]
[1772266117965,5.5193323,1862.9,1862.6,0.0022]
[1772266118166,1.808,1863.0,1862.7,0.0011]
[1772266119666,3.1499804,1863.0,1862.7,0.0011]
[1772266121961,0.001,1862.9,1862.7,0.0011]
[1772266123953,0.001,1862.9,1862.8,0.0022]
[1772266124159,0.001,1862.9,1862.7,0.0022]
[1772266124675,0.001,1862.9,1862.7,0.0011]
[1772266125576,3.96959255,1862.9,1862.6,0.0011]
[1772266125959,5.31065825,1862.8,1862.6,0.0011]
[1772266126278,3.96859255,1862.7,1862.6,0.0011]
[1772266127994,5.3107303,1862.7,1862.6,0.0011]
[1772266128293,3.96859255,1862.6,1862.3,0.0011]
[1772266128791,1.818,1862.5,1862.3,0.0011]
[1772266129000,3.96859255,1862.4,1862.3,0.0011]
[1772266129184,5.3107303,1862.7,1862.3,0.0011]
[1772266129364,1.818,1862.6,1862.3,0.0011]
[1772266129568,5.78659255,1862.6,1862.3,0.0011]
[1772266130270,1.34228187,1862.5,1862.3,0.0011]
[1772266130467,3.96859255,1862.8,1862.3,0.0011]
[1772266130677,3.96859255,1862.7,1862.3,0.0011]
[1772266131978,3.96859255,1862.7,1861.1,0.18795624]
[1772266131979,3.96859255,1862.6,1861.6,1.34288491]
[1772266132296,3.96859255,1862.6,1861.5,2.88764261]
[1772266132297,3.96859255,1862.2,1861.5,2.88764261]
[1772266132479,5.78959255,1862.2,1861.5,4.23063405]
[1772266133500,5.78959255,1862.2,1861.5,2.88764261]
[1772266133697,3.96859255,1862.1,1861.4,0.0011]
[1772266133898,3.96859255,1862.0,1861.4,0.0011]
[1772266134100,3.96859255,1861.7,1861.2,0.0011]
[1772266134304,3.96859255,1861.5,1861.2,0.0011]
[1772266135793,7.13452336,1861.6,1861.2,0.0011]
[1772266135970,3.96859255,1861.5,1861.2,0.0011]
[1772266136173,3.96859255,1861.5,1861.1,0.0011]
[1772266136474,1.3430751,1861.4,1861.1,0.0011]
[1772266136782,1.824,1861.3,1861.1,0.0011]
[1772266137181,1.3430751,1861.4,1861.1,0.0011]
[1772266137405,3.96859255,1861.2,1859.9,2.87022116]
[1772266137709,3.96859255,1861.1,1860.1,2.86912116]
[1772266137904,3.96859255,1861.0,1860.1,2.86912116]
[1772266138286,3.96859255,1861.0,1859.9,1.34518602]
[1772266138287,3.96859255,1860.8,1859.9,0.0011]
[1772266138482,3.96859255,1860.6,1859.9,1.34525008]
[1772266139411,3.96859255,1860.6,1859.9,0.0011]
[1772266140383,3.96859255,1860.4,1859.9,0.0011]
[1772266140715,3.1697248,1860.5,1859.9,0.0011]
[1772266140716,3.96859255,1860.2,1859.9,0.0011]
[1772266141011,5.25727829,1860.3,1859.9,0.0011]
[1772266141012,5.79459255,1860.1,1859.9,0.0011]
[1772266141210,3.96859255,1860.0,1859.9,0.0011]
[1772266141434,1.3437248,1860.5,1859.9,0.0011]
[1772266141725,3.96859255,1860.4,1859.9,0.0011]
[1772266141963,1.827,1860.6,1859.9,2.90352662]
[1772266142162,3.96859255,1860.7,1859.9,2.90352662]
[1772266142327,5.31217516,1860.7,1860.0,1.34408602]
[1772266142526,5.31217499,1860.7,1860.0,1.34408602]
[1772266142761,3.96859255,1860.7,1860.0,1.34408602]
[1772266142962,2.92351711,1860.8,1860.0,1.34408602]
[1772266143255,2.92351597,1860.8,1860.0,4.24239105]
[1772266143429,1.58,1860.8,1860.0,4.24239105]
[1772266144125,3.96859255,1861.0,1860.1,2.84044552]
[1772266144330,5.31196479,1861.0,1860.2,1.34394151]
[1772266144728,5.31196479,1861.0,1860.2,4.18438703]
[1772266145054,1.34332166,1861.1,1860.3,2.83631808]
[1772266145236,5.37104716,1861.9,1860.2,1.34394151]
[1772266145237,5.37190636,1861.6,1860.6,1.49299642]
[1772266145558,9.34049891,1861.6,1860.6,1.49299642]
[1772266145960,1.827,1861.5,1860.6,1.49299642]
[1772266146270,11.16749891,1861.6,1860.6,1.49299642]
[1772266146770,11.16749891,1861.6,1860.7,1.34358037]
[1772266146972,0.001,1860.9,1860.7,1.34358037]
[1772266147154,11.16749891,1861.6,1860.7,1.34358037]
[1772266147352,11.16749891,1861.6,1860.6,6.92113259]
[1772266147353,3.96859255,1861.3,1860.2,1.34394151]
[1772266147571,3.96859255,1861.1,1860.1,2.94513309]
[1772266147779,1.826,1861.0,1860.1,2.94513309]
[1772266147949,5.70859255,1861.0,1860.1,2.94513309]
[1772266148575,1.34343597,1860.9,1860.1,2.94513309]
[1772266148875,5.31202852,1860.9,1860.1,2.94513309]
[1772266149443,5.79459255,1861.0,1860.1,2.94513309]
[1772266149652,3.96859255,1860.9,1860.1,2.94513309]
[1772266152250,4.17197524,1861.1,1860.1,4.45645696]
[1772266152451,4.17197524,1861.3,1860.3,6.76860216]
[1772266152649,4.17197524,1861.3,1860.3,1.51132387]
[1772266154169,4.17197524,1861.3,1860.4,1.34379703]
[1772266154350,5.51493446,1861.6,1860.5,1.5049007]
[1772266154952,4.17197524,1861.5,1860.5,1.5049007]
[1772266155579,4.17197524,1861.5,1860.4,1.34379703]
[1772266155774,4.17197524,1861.5,1860.4,2.94979703]
[1772266155978,4.17197524,1861.5,1860.5,1.49843396]
[1772266156276,4.17197524,1861.4,1860.6,1.34365258]
[1772266158656,4.17197524,1861.2,1860.6,1.34365258]
[1772266159069,4.17197524,1861.2,1860.3,5.37533745]
[1772266159462,4.17197524,1861.2,1860.3,6.8640409]
[1772266160574,0.001,1861.3,1860.5,1.4854535]
[1772266160771,0.001,1861.3,1860.6,1.34365258]
[1772266161092,4.17297524,1861.3,1860.6,1.34365258]
[1772266161580,4.17297524,1861.3,1860.3,1.34386926]
[1772266162777,1.34321942,1861.2,1860.3,1.34386926]
[1772266162981,4.17197524,1861.1,1860.3,1.34386926]
[1772266164061,4.17197524,1861.1,1860.2,1.606]
[1772266164366,4.17197524,1860.9,1860.2,2.94989402]
[1772266164983,1.34350816,1860.8,1860.2,2.94989402]
[1772266165188,4.17197524,1860.8,1860.2,2.94989402]
[1772266165513,4.17197524,1860.7,1860.0,0.0011]
[1772266165697,4.17197524,1860.7,1860.0,1.34518092]
[1772266167101,5.51562782,1860.6,1860.0,0.0011]
[1772266167500,4.17197524,1860.6,1860.0,0.0011]
[1772266167698,5.37358385,1861.0,1860.0,0.0011]
[1772266167699,5.5153079,1861.1,1860.3,1.46270342]
[1772266167900,4.17197524,1861.0,1860.3,1.46270342]
[1772266168103,4.17197524,1861.0,1860.2,1.605]
[1772266168603,4.17197524,1861.0,1860.0,0.0011]
[1772266168800,4.17197524,1860.9,1860.0,0.0011]
[1772266169186,4.17197524,1860.7,1860.0,1.34518602]
[1772266169380,4.17197524,1860.7,1860.0,0.0011]
[1772266171073,5.51557258,1860.7,1860.0,0.0011]
[1772266171276,4.17197524,1860.7,1860.0,0.0011]
[1772266171504,4.17197524,1860.7,1860.3,0.0011]
[1772266171703,4.17197524,1860.6,1860.3,0.0011]
[1772266172992,1.822,1860.8,1860.3,0.0011]
[1772266172993,4.17197524,1860.8,1860.3,0.0011]
[1772266173241,5.51555561,1860.7,1860.3,0.0011]
[1772266173686,4.17197524,1860.7,1860.3,0.0011]
[1772266175197,4.17197524,1860.5,1860.0,0.0011]
[1772266175794,4.17197524,1860.4,1860.0,0.0011]
[1772266177431,5.51578455,1860.4,1860.0,0.0011]
[1772266178210,4.17197524,1860.3,1860.0,0.0011]
[1772266180353,1.34394151,1860.2,1860.0,0.0011]
[1772266180858,5.37432582,1860.7,1860.0,3.75864366]
[1772266180859,4.03422265,1860.7,1860.0,3.75864366]
[1772266181234,4.03422265,1860.7,1860.0,5.03882262]
[1772266181436,4.03422265,1860.7,1860.0,1.28127896]
[1772266182235,7.17608187,1860.9,1860.0,1.28127896]
[1772266182628,7.17608187,1860.9,1860.1,1.34401376]
[1772266182832,4.00361655,1860.8,1860.0,2.62530983]
[1772266183433,4.00361655,1860.8,1860.1,0.0011]
[1772266183634,4.00461655,1860.8,1860.1,0.0011]
[1772266184651,5.34814763,1860.8,1860.1,0.0011]
[1772266184856,0.001,1860.8,1860.5,3.75754366]
[1772266185056,1.34332113,1861.1,1860.3,4.96790992]
[1772266185257,1.34332113,1861.1,1860.3,1.21036626]
[1772266185573,4.00361655,1861.0,1860.2,2.80536626]
[1772266185866,4.00461655,1861.3,1860.3,1.19493617]
[1772266186050,5.34778082,1861.3,1860.5,1.19493617]
[1772266186455,4.00361655,1861.2,1860.5,1.19493617]
[1772266186638,4.00361655,1861.2,1860.3,2.78993617]
[1772266186834,5.34690815,1861.1,1860.4,2.52452414]
[1772266187052,4.00361655,1861.1,1860.4,2.52452414]
[1772266187683,1.34419904,1861.3,1860.5,1.18072711]
[1772266187878,5.34781559,1861.3,1860.5,1.18072711]
[1772266188461,4.00361655,1861.2,1860.4,1.34379703]
[1772266188658,4.00361655,1861.2,1860.3,2.93882169]
[1772266188983,4.00361655,1861.0,1860.3,2.93882169]
[1772266190385,5.34687594,1861.2,1860.4,1.13866288]
[1772266191665,4.00361655,1861.1,1860.5,1.3437248]
[1772266192381,1.34325939,1861.2,1860.5,2.45496773]
[1772266192551,4.00361655,1861.2,1860.5,2.45496773]
[1772266192749,4.00361655,1861.2,1860.5,1.3437248]
[1772266194383,1.3432916,1861.1,1860.3,2.4281862]
[1772266194595,5.34689235,1861.2,1860.4,1.08431694]
[1772266194903,4.00361655,1861.1,1860.4,1.08431694]
[1772266195497,4.00361655,1861.1,1860.5,0.0011]
[1772266195708,4.00461655,1861.1,1860.5,0.0011]
[1772266196181,4.00461655,1861.1,1860.5,1.05895987]
[1772266196380,0.001,1861.1,1860.5,1.05895987]
[1772266196591,0.001,1861.1,1860.6,1.34365258]
[1772266196783,0.001,1861.3,1860.8,3.75754366]
[1772266196983,0.001,1861.3,1860.6,6.15905611]
[1772266197895,0.001,1861.3,1860.7,1.03089711]
[1772266199301,0.001,1861.3,1860.8,1.34350816]
[1772266200075,0.001,1861.3,1860.8,6.10640892]
[1772266200575,4.00461655,1861.3,1860.8,1.34350816]
[1772266200783,4.00361655,1861.2,1860.5,2.93977866]
[1772266200976,4.00361655,1861.2,1860.5,1.5961]
[1772266201297,4.00361655,1861.0,1860.5,0.0011]
[1772266202108,5.34684069,1861.2,1860.5,0.0011]
[1772266202310,4.00361655,1861.2,1860.5,0.0011]
[1772266202514,4.00361655,1861.2,1860.5,4.73884734]
[1772266202812,0.001,1861.3,1860.6,0.98020368]
[1772266203214,0.001,1861.3,1860.7,1.34358037]
[1772266204283,4.00461655,1861.3,1860.6,1.34359995]
[1772266204484,4.00461655,1861.3,1860.5,1.34477324]
[1772266206097,4.00461655,1861.3,1860.5,3.75864366]
[1772266206098,4.00361655,1861.2,1860.5,3.75864366]
[1772266206290,4.00361655,1861.2,1860.5,0.0011]
[1772266208318,0.001,1861.3,1860.6,0.90736137]
[1772266208613,0.001,1861.3,1860.7,0.90736137]
[1772266209200,0.001,1861.2,1860.7,0.90736137]
[1772266209946,0.001,1861.2,1860.8,3.75754366]
[1772266210247,0.001,1861.2,1860.9,1.34343597]
[1772266212041,0.001,1861.2,1860.9,2.93743597]
[1772266214931,3.70325826,1861.6,1860.9,2.93743597]
[1772266216558,3.70325826,1861.6,1860.8,1.599]
[1772266216926,3.70325826,1861.4,1860.9,1.34343597]
[1772266217349,1.71094313,1861.7,1860.9,1.34343597]
[1772266217350,3.70325826,1861.6,1860.9,2.14035706]
[1772266217656,3.70325826,1861.6,1861.0,0.79692109]
[1772266219180,3.70325826,1861.6,1861.1,1.3432916]
[1772266219378,3.70325826,1861.6,1861.2,1.599]
[1772266219559,0.36802208,1861.7,1861.2,1.599]
[1772266220859,1.71088125,1861.7,1861.1,1.3432916]
[1772266221068,3.70325826,1861.6,1861.1,1.3432916]
[1772266222381,3.70425826,1861.6,1861.2,0.02453296]
[1772266222676,3.70425826,1861.6,1861.1,1.36782456]
[1772266223585,3.70325826,1861.5,1861.0,1.36896288]
[1772266223883,3.70325826,1861.5,1861.0,0.0011]
[1772266224703,3.70325826,1861.5,1861.0,1.34445664]
[1772266225107,3.70325826,1861.5,1861.0,0.0011]
[1772266229109,0.001,1861.6,1861.0,0.67364564]
[1772266229799,0.001,1861.6,1861.1,2.00600573]
[1772266229998,3.70425826,1861.6,1861.2,1.602]
[1772266232601,3.70425826,1861.6,1861.3,1.34314726]
[1772266234717,3.70425826,1861.6,1861.2,1.34316001]
[1772266235018,3.70425826,1861.6,1861.2,2.94816001]
[1772266235212,0.001,1861.6,1861.2,2.94816001]
[1772266235623,3.70425826,1861.6,1861.2,2.94816001]
[1772266235949,0.001,1861.5,1861.2,2.94816001]
[1772266238133,0.001,1861.5,1861.2,3.52248977]
[1772266239604,0.27993563,1861.7,1861.4,0.5634985]
[1772266239810,3.70325826,1862.0,1861.5,2.1744985]
[1772266241321,3.56172031,1862.2,1861.6,0.5377226]
[1772266241844,3.56172031,1862.4,1861.8,0.5377226]
[1772266242141,0.001,1862.7,1862.0,0.52720181]
[1772266242531,0.001,1862.7,1862.1,0.51676316]
[1772266242718,0.001,1862.7,1862.1,1.55041787]
[1772266242922,0.001,1862.7,1862.2,0.50999841]
[1772266243164,0.001,1862.7,1862.3,1.61]
[1772266243746,0.001,1862.7,1862.4,1.34235395]
[1772266243916,0.001,1862.7,1862.4,2.95235395]
[1772266245444,0.001,1862.7,1862.4,3.44189971]
[1772266246727,0.001,1862.7,1861.8,0.47948112]
[1772266246728,3.59286754,1862.7,1861.8,0.47948112]
[1772266246927,3.59286754,1862.7,1861.6,5.84101932]
[1772266247139,5.25850286,1862.8,1861.6,5.84101932]
[1772266247140,0.001,1862.9,1862.5,0.46946523]
[1772266247338,0.001,1862.9,1862.6,1.614]
[1772266247822,3.59286754,1862.9,1862.4,1.34231302]
[1772266248043,3.59286754,1862.9,1862.3,1.34237062]
[1772266248224,0.001,1862.9,1862.3,1.80194473]
[1772266249119,0.001,1862.9,1862.4,1.614]
[1772266249934,0.001,1862.9,1862.5,1.34228187]
[1772266250950,3.59286754,1862.9,1862.4,1.614]
[1772266251149,3.59286754,1862.9,1862.2,5.80013896]
[1772266251150,3.59286754,1862.9,1862.2,5.36979042]
[1772266251480,3.59286754,1862.9,1862.3,1.615]
[1772266251624,3.59286754,1862.9,1861.9,1.34271443]
[1772266251961,3.59186754,1862.7,1862.1,1.34257021]
[1772266252532,3.59286754,1862.9,1862.1,1.76330561]
[1772266252734,3.59286754,1862.9,1862.2,0.4207354]
[1772266254228,3.59286754,1862.9,1862.3,1.34242603]
[1772266254429,3.59286754,1862.9,1862.4,1.614]
[1772266256137,3.59286754,1862.9,1862.5,1.34228187]
[1772266256551,3.59286754,1862.9,1862.5,2.95728187]
[1772266257223,3.59286754,1862.9,1862.5,1.615]
[1772266257426,3.59186754,1862.8,1862.1,1.615]
[1772266258854,3.59186754,1862.8,1862.2,1.34249812]
[1772266259164,3.59186754,1863.3,1862.5,3.62245022]
[1772266259474,0.001,1863.4,1862.7,8.88095308]
[1772266259626,3.59286754,1863.4,1862.5,3.62245022]
[1772266259822,3.59186754,1863.3,1862.6,1.615]
[1772266260226,0.001,1863.4,1862.5,1.6161]
[1772266260227,0.001,1862.8,1862.5,1.6161]
[1772266260742,0.001,1862.8,1862.6,1.34220981]
[1772266260958,0.001,1862.8,1862.6,1.615]
[1772266260959,3.59286754,1862.8,1862.6,1.615]
[1772266261160,3.59286754,1862.8,1862.5,1.34337213]
[1772266261364,3.59286754,1862.8,1862.4,0.0011]
[1772266262973,1.34308802,1862.8,1862.4,0.0011]
[1772266263147,3.59186754,1862.7,1862.4,0.0011]
[1772266265065,3.59186754,1862.6,1862.4,0.0011]
[1772266265446,3.59186754,1862.6,1862.2,0.0011]
[1772266265687,3.59186754,1862.6,1861.8,2.95674046]
[1772266265959,3.59186754,1862.6,1861.6,1.613]
[1772266267240,3.59186754,1862.4,1861.7,1.34285867]
[1772266267736,3.59186754,1862.4,1861.6,1.34287762]
[1772266268172,3.59186754,1862.4,1861.7,1.614]
[1772266268744,3.59186754,1862.4,1861.7,1.613]
[1772266269476,3.59186754,1862.2,1861.7,1.613]
[1772266269650,3.59186754,1862.2,1861.6,1.34290328]
[1772266269854,3.59186754,1862.2,1861.6,2.95590328]
[1772266270058,3.59186754,1862.2,1861.6,6.5783535]
[1772266270241,3.59186754,1862.5,1861.7,3.43473987]
[1772266270874,3.59186754,1862.5,1861.6,2.95590328]
[1772266270875,3.59186754,1862.5,1861.8,1.613]
[1772266272150,3.59186754,1862.5,1861.8,2.95576988]
[1772266272475,3.30959817,1862.4,1861.8,2.95576988]
[1772266274990,3.30959817,1862.4,1861.7,0.0011]
[1772266275292,3.30959817,1862.3,1861.7,1.34394056]
[1772266275858,4.65192212,1862.5,1861.8,3.43473987]
[1772266276296,3.30959817,1862.4,1861.7,1.34394056]
[1772266276793,4.65195714,1862.4,1861.7,1.34394056]
[1772266276968,3.30959817,1862.4,1861.8,1.613]
[1772266278494,3.30959817,1862.4,1861.8,5.04773987]
[1772266278897,4.65275892,1862.7,1862.0,1.34264232]
[1772266279583,3.30959817,1862.6,1862.0,1.34264232]
[1772266282001,3.30959817,1862.5,1862.0,1.34264232]
[1772266282602,3.24959817,1862.5,1862.0,1.34264232]
[1772266283978,3.24959817,1862.5,1862.1,1.615]
[1772266284609,3.30959817,1862.4,1861.7,1.34391954]
[1772266284840,3.30959817,1862.4,1861.7,2.95891954]
[1772266285806,3.30959817,1862.2,1861.7,2.95891954]
[1772266286104,3.30959817,1862.2,1861.7,1.6161]
[1772266286418,0.001,1862.8,1862.1,7.18714403]
[1772266286580,4.65274731,1862.7,1861.8,3.43473987]
[1772266286785,3.30959817,1862.6,1861.9,1.615]
[1772266287102,0.001,1862.3,1861.9,1.615]
[1772266288305,0.001,1862.3,1861.9,1.34271443]
[1772266288490,0.001,1862.3,1862.0,1.616]
[1772266290010,0.001,1862.3,1861.9,1.34271443]
[1772266290312,3.31059817,1862.3,1862.0,1.618]
[1772266290484,3.30959817,1862.2,1862.0,1.619]
[1772266290683,0.001,1862.7,1862.2,3.43473987]
[1772266291084,0.001,1862.7,1862.1,2.19858281]
[1772266291284,0.001,1862.7,1862.3,1.619]
[1772266292000,0.001,1862.7,1862.1,2.19858281]
[1772266292345,3.31059817,1862.7,1862.2,1.619]
[1772266292812,3.31059817,1862.7,1862.3,1.34242603]
[1772266293812,3.30959817,1862.5,1861.9,1.619]
[1772266294585,4.65277485,1862.7,1861.9,1.619]
[1772266294786,3.31059817,1862.7,1862.0,2.96164232]
[1772266296005,3.31059817,1862.7,1862.0,1.34264232]
[1772266296219,3.31059817,1862.7,1862.1,1.618]
[1772266296697,3.30959817,1862.6,1862.1,2.960504]
[1772266299019,4.65182313,1862.6,1862.1,2.961604]
[1772266299197,3.30959817,1862.5,1862.1,1.6201]
[1772266299887,3.30959817,1862.5,1862.1,2.96266855]
[1772266300121,3.30959817,1862.5,1862.1,0.0011]